bitfinex-derivatives/quotes_BTCF0:USTF0_20260131
["timestamp","ask_amount","ask_price","bid_price","bid_amount"]
[1769869823969,0.09948,81607.0,81552.0,0.27982576]
[1769869824167,0.09948,81607.0,81520.0,0.061422]
[1769869824168,0.09948,81607.0,81555.0,0.27982576]
[1769869824669,0.0904,81606.0,81557.0,0.27982576]
[1769869824871,0.0904,81605.0,81556.0,0.12257981]
[1769869825063,0.0904,81596.0,81542.0,0.27982576]
[1769869825265,0.37630582,81606.0,81544.0,0.27982576]
[1769869825462,0.0904,81600.0,81544.0,0.27982576]
[1769869825666,0.25358401,81605.0,81544.0,0.27982576]
[1769869825858,0.09948,81607.0,81555.0,0.27982576]
[1769869826061,0.09948,81607.0,81561.0,0.27982576]
[1769869826262,0.28590582,81651.0,81563.0,0.27982576]
[1769869826461,0.28290582,81649.0,81571.0,0.27982576]
[1769869826661,0.28290582,81649.0,81564.0,0.09944]
[1769869826662,0.25667278,81645.0,81591.0,0.27982576]
[1769869826863,0.09944,81650.0,81591.0,0.27982576]
[1769869827168,0.09944,81650.0,81595.0,0.27982576]
[1769869827359,0.2342969,81649.0,81595.0,0.27982576]
[1769869827670,0.2342969,81649.0,81580.0,0.39046404]
[1769869827671,0.09944,81650.0,81601.0,0.27982576]
[1769869828062,0.09944,81650.0,81603.0,0.27982576]
[1769869828565,0.29289489,81716.0,81594.0,0.09944]
[1769869828566,0.28590582,81677.0,81605.0,0.27982576]
[1769869828767,0.09944,81676.0,81611.0,0.27982576]
[1769869828966,0.09281278,81667.0,81613.0,0.27982576]
[1769869829167,0.09944,81682.0,81631.0,0.27982576]
[1769869829567,0.0904,81672.0,81631.0,0.27982576]
[1769869829872,0.0904,81672.0,81632.0,0.40231473]
[1769869830061,0.09944,81682.0,81632.0,0.40231473]
[1769869830062,0.09944,81682.0,81633.0,0.27982576]
[1769869830259,0.0904,81675.0,81633.0,0.27982576]
[1769869830565,0.0904,81675.0,81594.0,0.061367]
[1769869830566,0.09944,81682.0,81641.0,0.27982576]
[1769869831166,0.0904,81680.0,81643.0,0.27982576]
[1769869831367,0.0904,81678.0,81643.0,0.27982576]
[1769869831568,0.0904,81675.0,81643.0,0.27982576]
[1769869831768,0.0904,81691.0,81645.0,0.27982576]
[1769869831963,0.0904,81693.0,81645.0,0.27982576]
[1769869832167,0.28590582,81711.0,81645.0,0.27982576]
[1769869832168,0.0904,81690.0,81645.0,0.27982576]
[1769869832367,0.0904,81699.0,81647.0,0.27982576]
[1769869832569,0.37630582,81691.0,81646.0,0.12245672]
[1769869832770,0.0904,81681.0,81640.0,0.39046404]
[1769869832973,0.28590582,81679.0,81612.0,0.27982576]
[1769869833276,0.0994,81680.0,81619.0,0.12244548]
[1769869833277,0.28590582,81660.0,81619.0,0.12244548]
[1769869833474,0.28590582,81660.0,81582.0,0.04357231]
[1769869833475,0.28590582,81649.0,81582.0,0.03129731]
[1769869833778,0.28590582,81628.0,81582.0,0.03129731]
[1769869833976,0.10750415,81648.0,81558.0,0.0994]
[1769869833977,0.08590582,81626.0,81558.0,0.0994]
[1769869834168,0.08590582,81626.0,81559.0,0.27982576]
[1769869834365,0.02342935,81625.0,81565.0,0.40230648]
[1769869834570,0.02342935,81625.0,81558.0,0.0994]
[1769869834571,0.14599038,81625.0,81566.0,0.27982576]
[1769869834873,0.3232,81627.0,81559.0,0.12256103]
[1769869834874,0.04593504,81626.0,81559.0,0.12256103]
[1769869835071,0.3232,81627.0,81559.0,0.12256103]
[1769869835072,0.01802198,81624.0,81559.0,0.12256103]
[1769869835373,0.01802198,81624.0,81535.0,0.00012773]
[1769869835374,0.0994,81623.0,81536.0,0.27982576]
[1769869835777,0.04145851,81622.0,81537.0,0.27982576]
[1769869835971,0.28590582,81621.0,81537.0,0.27982576]
[1769869836278,0.33814979,81620.0,81537.0,0.27982576]
[1769869836477,0.33814979,81620.0,81538.0,0.12256178]
[1769869836680,0.33814979,81620.0,81535.0,0.00012773]
[1769869836882,0.27306582,81618.0,81535.0,0.00012773]
[1769869837073,0.27306582,81616.0,81536.0,0.12258056]
[1769869837385,0.27306582,81614.0,81537.0,0.29896349]
[1769869837868,0.0994,81623.0,81539.0,0.29896349]
[1769869837869,0.27306582,81612.0,81539.0,0.29896349]
[1769869838271,0.27306582,81610.0,81539.0,0.29896349]
[1769869838579,0.27306582,81610.0,81541.0,0.29896349]
[1769869838580,0.00180329,81609.0,81541.0,0.29896349]
[1769869838776,0.00180329,81609.0,81553.0,0.02810425]
[1769869838777,0.0994,81608.0,81553.0,0.02810425]
[1769869838979,0.22198582,81608.0,81554.0,0.29896349]
[1769869839279,0.10001367,81610.0,81554.0,0.25210756]
[1769869839478,0.0994,81619.0,81564.0,0.32706774]
[1769869839679,0.0994,81619.0,81568.0,0.29896349]
[1769869839883,0.08018032,81618.0,81568.0,0.29896349]
[1769869840074,0.12257756,81618.0,81572.0,0.02810425]
[1769869840271,0.1910407,81618.0,81569.0,0.12257756]
[1769869840471,0.27306582,81617.0,81570.0,0.02810425]
[1769869840681,0.12257756,81618.0,81574.0,0.02810425]
[1769869840982,0.0994,81619.0,81573.0,0.29603817]
[1769869841180,0.0994,81619.0,81575.0,0.15066077]
[1769869841378,0.12255652,81618.0,81574.0,0.02810425]
[1769869841682,0.12255652,81618.0,81573.0,0.29603817]
[1769869841683,0.28610119,81617.0,81558.0,0.29603817]
[1769869842079,0.01712407,81616.0,81562.0,0.29603817]
[1769869842277,0.28610119,81615.0,81562.0,0.29603817]
[1769869842583,0.0994,81619.0,81545.0,0.29603817]
[1769869842584,0.28610119,81613.0,81545.0,0.29603817]
[1769869842880,0.28610119,81613.0,81520.0,0.39046404]
[1769869842881,0.28610119,81613.0,81537.0,0.12256554]
[1769869843082,0.0405629,81615.0,81537.0,0.12256554]
[1769869843083,0.28610119,81611.0,81537.0,0.12256554]
[1769869843283,0.11629447,81612.0,81529.0,0.29603817]
[1769869843284,0.28610119,81609.0,81529.0,0.29603817]
[1769869843481,0.28610119,81607.0,81529.0,0.29603817]
[1769869843681,0.28610119,81605.0,81529.0,0.29603817]
[1769869843981,0.11629447,81606.0,81498.0,0.29603817]
[1769869843982,0.28610119,81603.0,81498.0,0.29603817]
[1769869844172,0.12812551,81604.0,81498.0,0.29603817]
[1769869844173,0.28610119,81587.0,81498.0,0.29603817]
[1769869844377,0.28610119,81585.0,81498.0,0.29603817]
[1769869844578,0.28610119,81583.0,81499.0,0.12259559]
[1769869844779,0.28610119,81581.0,81498.0,0.29603817]
[1769869844982,0.28610119,81579.0,81471.0,0.29603817]
[1769869845177,0.28610119,81551.0,81506.0,0.02810425]
[1769869845377,0.28610119,81551.0,81499.0,0.12259559]
[1769869845579,0.28610119,81549.0,81484.0,0.29603817]
[1769869845979,0.28610119,81547.0,81484.0,0.29603817]
[1769869846178,0.28610119,81547.0,81468.0,0.39547817]
[1769869846383,0.28610119,81545.0,81469.0,0.29603817]
[1769869846586,0.28610119,81545.0,81470.0,0.29603817]
[1769869846886,0.28610119,81543.0,81470.0,0.29603817]
[1769869847293,0.28610119,81541.0,81466.0,0.00012852]
[1769869847490,0.28610119,81539.0,81466.0,0.00012852]
[1769869847685,0.28610119,81537.0,81466.0,0.00012852]
[1769869847885,0.28610119,81535.0,81466.0,0.00012852]
[1769869848087,0.28610119,81533.0,81466.0,0.00012852]
[1769869848488,0.28610119,81531.0,81468.0,0.29603817]
[1769869848791,0.28610119,81531.0,81475.0,0.29603817]
[1769869848792,0.10214991,81530.0,81475.0,0.29603817]
[1769869849099,0.13867466,81533.0,81467.0,0.012292]
[1769869849100,0.09944,81539.0,81496.0,0.29603817]
[1769869849303,0.28610119,81528.0,81477.0,0.29603817]
[1769869849696,0.12267304,81527.0,81461.0,0.29603817]
[1769869850004,0.25707132,81527.0,81476.0,0.29603817]
[1769869850301,0.28610119,81526.0,81468.0,0.02810425]
[1769869850502,0.28610119,81526.0,81443.0,0.29603817]
[1769869850503,0.28610119,81525.0,81443.0,0.29603817]
[1769869850702,0.28610119,81525.0,81458.0,0.29603817]
[1769869850898,0.01174337,81524.0,81458.0,0.29603817]
[1769869851107,0.29784456,81524.0,81470.0,0.02810425]
[1769869851297,0.28610119,81522.0,81471.0,0.02810425]
[1769869851497,0.28610119,81522.0,81466.0,0.29616669]
[1769869851800,0.28610119,81520.0,81466.0,0.29616669]
[1769869852308,0.29694195,81519.0,81466.0,0.29616669]
[1769869852596,0.29694195,81519.0,81471.0,0.32414242]
[1769869852597,0.09948,81518.0,81471.0,0.32414242]
[1769869852805,0.09948,81518.0,81481.0,0.02810425]
[1769869852989,0.09948,81518.0,81471.0,0.29603817]
[1769869852990,0.22218992,81518.0,81483.0,0.02810425]
[1769869853194,0.22218992,81518.0,81471.0,0.29603817]
[1769869853497,0.22218992,81518.0,81466.0,0.00012852]
[1769869853498,0.22218992,81518.0,81488.0,0.02810425]
[1769869853698,0.22218992,81518.0,81485.0,0.02810425]
[1769869853898,0.22218992,81518.0,81489.0,0.02810425]
[1769869854096,0.28610119,81517.0,81491.0,0.02810425]
[1769869854301,0.42703928,81517.0,81477.0,0.02810425]
[1769869854594,0.28610119,81517.0,81467.0,0.41874583]
[1769869854795,0.12269336,81516.0,81495.0,0.02810425]
[1769869855104,0.09948,81518.0,81489.0,0.02810425]
[1769869855302,0.09948,81518.0,81497.0,0.02810425]
[1769869855492,0.09948,81540.0,81490.0,0.12269336]
[1769869855697,0.28610119,81539.0,81482.0,0.29603817]
[1769869855904,0.12269411,81528.0,81486.0,0.32414242]
[1769869856203,0.37347932,81539.0,81466.0,0.00012852]
[1769869856204,0.00722487,81527.0,81483.0,0.12269411]
[1769869856412,0.00722487,81527.0,81474.0,0.32414242]
[1769869856593,0.00722487,81527.0,81466.0,0.00012852]
[1769869856594,0.42714423,81532.0,81480.0,0.32414242]
[1769869856795,0.00541971,81531.0,81485.0,0.02810425]
[1769869857006,0.28610119,81525.0,81466.0,0.00012852]
[1769869857304,0.10228245,81524.0,81478.0,0.29603817]
[1769869857497,0.2249743,81524.0,81480.0,0.02810425]
[1769869857698,0.12269185,81524.0,81487.0,0.02810425]
[1769869858102,0.12269185,81524.0,81491.0,0.02810425]
[1769869858301,0.28610119,81539.0,81496.0,0.02810425]
[1769869858507,0.28610119,81539.0,81497.0,0.02810425]
[1769869858805,0.53734949,81539.0,81493.0,0.02810425]
[1769869859007,0.28610119,81538.0,81487.0,0.29603817]
[1769869859198,0.28610119,81538.0,81470.0,0.29603817]
[1769869859402,0.09948,81540.0,81474.0,0.29603817]
[1769869859403,0.28610119,81536.0,81474.0,0.29603817]
[1769869859804,0.28610119,81536.0,81466.0,0.00012852]
[1769869860106,0.28610119,81534.0,81468.0,0.12269336]
[1769869860404,0.28610119,81532.0,81467.0,0.29603817]
[1769869860710,0.28610119,81530.0,81467.0,0.12269788]
[1769869861003,0.01526584,81529.0,81479.0,0.29603817]
[1769869861302,0.09952,81528.0,81479.0,0.29603817]
[1769869861506,0.09952,81528.0,81486.0,0.29603817]
[1769869861708,0.28610119,81573.0,81518.0,0.29603817]
[1769869862008,0.09952,81563.0,81518.0,0.29603817]
[1769869862204,0.28610119,81562.0,81474.0,0.2408908]
[1769869862403,0.28610119,81562.0,81434.0,0.60549006]
[1769869862404,0.11748708,81561.0,81450.0,0.012295]
[1769869862600,0.28610119,81557.0,81473.0,0.12269336]
[1769869862809,0.28610119,81557.0,81429.0,0.09952]
[1769869862810,0.1224,81544.0,81429.0,0.09952]
[1769869863007,0.11748708,81556.0,81429.0,0.09952]
[1769869863008,0.28610119,81536.0,81429.0,0.09952]
[1769869863207,0.09952,81538.0,81444.0,0.012296]
[1769869863208,0.28610119,81534.0,81444.0,0.012296]
[1769869863508,0.28610119,81532.0,81467.0,0.15077654]
[1769869863707,0.09952,81531.0,81478.0,0.02810425]
[1769869863908,0.12841355,81531.0,81485.0,0.02810425]
[1769869864210,0.09952,81531.0,81493.0,0.02810425]
[1769869864414,0.09952,81531.0,81468.0,0.14022034]
[1769869864415,0.28610119,81574.0,81501.0,0.29603817]
[1769869864708,0.28610119,81574.0,81482.0,0.09952]
[1769869864709,0.21458274,81543.0,81485.0,0.29603817]
[1769869864905,0.28610119,81541.0,81502.0,0.12268132]
[1769869865203,0.28610119,81541.0,81456.0,0.2408908]
[1769869865204,0.28610119,81541.0,81471.0,0.29603817]
[1769869865404,0.09952,81542.0,81456.0,0.29603817]
[1769869865405,0.28610119,81539.0,81456.0,0.29603817]
[1769869865708,0.28610119,81539.0,81441.0,0.3917317]
[1769869865709,0.28610119,81537.0,81442.0,0.29603817]
[1769869865907,0.28610119,81534.0,81442.0,0.29603817]
[1769869866113,0.28610119,81532.0,81442.0,0.29603817]
[1769869866307,1.8516239,81533.0,81441.0,0.3917317]
[1769869866308,0.23380553,81528.0,81441.0,0.3917317]
[1769869866606,1.11309837,81531.0,81441.0,0.3917317]
[1769869866607,0.28610119,81526.0,81441.0,0.3917317]
[1769869866805,0.28048706,81523.0,81441.0,0.3917317]
[1769869867010,0.11781837,81525.0,81412.0,0.28935598]
[1769869867011,0.09952,81491.0,81412.0,0.28935598]
[1769869867210,0.28048706,81470.0,81412.0,0.28935598]
[1769869867518,0.39812,81479.0,81427.0,0.02810425]
[1769869867714,0.39812,81479.0,81428.0,0.02810425]
[1769869867906,0.28048706,81477.0,81411.0,0.03163485]
[1769869868301,0.28048706,81475.0,81362.0,0.30000093]
[1769869868508,0.26322258,81476.0,81360.0,0.012308]
[1769869868509,0.28048706,81459.0,81360.0,0.012308]
[1769869868707,0.28048706,81459.0,81377.0,0.12278375]
[1769869868908,0.28048706,81457.0,81356.0,0.09952]
[1769869869209,0.09952,81460.0,81357.0,0.41513973]
[1769869869210,0.28048706,81455.0,81357.0,0.41513973]
[1769869869406,0.23755405,81456.0,81358.0,0.29235598]
[1769869869407,0.28048706,81422.0,81358.0,0.29235598]
[1769869869613,0.09952,81421.0,81358.0,0.29235598]
[1769869869813,0.01177383,81421.0,81389.0,0.02810425]
[1769869870002,0.12284106,81420.0,81381.0,0.29235598]
[1769869870203,0.28048706,81437.0,81383.0,0.32046023]
[1769869870404,0.00829443,81419.0,81386.0,0.02810425]
[1769869870605,0.11186,81418.0,81368.0,0.29235598]
[1769869870806,0.11186,81418.0,81385.0,0.02810425]
[1769869871005,0.0123,81415.0,81399.0,0.02798638]
[1769869871212,0.0123,81415.0,81385.0,0.02798638]
[1769869871412,0.00090568,81417.0,81381.0,0.29235598]
[1769869871709,0.09956,81418.0,81377.0,0.02798638]
[1769869871913,0.13621882,81417.0,81386.0,0.29235598]
[1769869872118,0.09956,81418.0,81394.0,0.02798638]
[1769869872320,0.09956,81418.0,81386.0,0.29235598]
[1769869872321,0.12285012,81416.0,81371.0,0.29235598]
[1769869872508,0.012303,81395.0,81349.0,0.29235598]
[1769869872710,0.012303,81395.0,81349.0,0.41519704]
[1769869873020,0.012303,81395.0,81338.0,0.012312]
[1769869873021,0.28048706,81415.0,81350.0,0.29235598]
[1769869873216,0.09956,81418.0,81350.0,0.29235598]
[1769869873217,0.13707977,81394.0,81351.0,0.29235598]
[1769869873514,0.111864,81393.0,81372.0,0.00161727]
[1769869873710,0.012305,81383.0,81351.0,0.29235598]
[1769869874015,0.02808883,81382.0,81329.0,0.29235598]
[1769869874211,0.012306,81373.0,81332.0,0.29235598]
[1769869874416,0.28048706,81381.0,81328.0,0.00011551]
[1769869874417,0.012308,81363.0,81328.0,0.00011551]
[1769869874625,0.012309,81358.0,81328.0,0.00011551]
[1769869874916,0.012309,81358.0,81273.0,0.06161]
[1769869874917,0.13735791,81357.0,81311.0,0.3106993]
[1769869875105,0.13735791,81357.0,81315.0,0.29235598]
[1769869875304,9.549e-05,81357.0,81318.0,0.29235598]
[1769869875719,0.012309,81355.0,81318.0,0.29235598]
[1769869875925,0.01231,81348.0,81311.0,0.01834332]
[1769869876110,0.28048706,81347.0,81311.0,0.01834332]
[1769869876423,0.28048706,81347.0,81253.0,0.39316]
[1769869876424,0.061597,81291.0,81244.0,0.29235598]
[1769869876716,0.061576,81318.0,81236.0,0.16410329]
[1769869876717,0.01232,81286.0,81236.0,0.16410329]
[1769869876916,0.01232,81284.0,81229.0,0.28935598]
[1769869877105,0.01232,81284.0,81217.0,0.01233]
[1769869877106,0.10050863,81285.0,81247.0,0.16410329]
[1769869877309,0.13915505,81311.0,81211.0,0.061657]
[1769869877310,0.11319217,81320.0,81256.0,0.012324]
[1769869877507,1.008587,81368.0,81239.0,0.0996]
[1769869877508,0.0996,81335.0,81284.0,0.01232]
[1769869877716,0.0996,81335.0,81257.0,0.061621]
[1769869877717,0.01231,81347.0,81310.0,0.16410329]
[1769869877915,0.012309,81355.0,81299.0,0.09964]
[1769869878103,0.012311,81342.0,81311.0,0.12305269]
[1769869878307,9.999e-05,81341.0,81301.0,0.012317]
[1769869878512,0.111948,81360.0,81299.0,0.09964]
[1769869878513,0.012307,81368.0,81311.0,0.012316]
[1769869878816,0.012306,81375.0,81320.0,0.29235598]
[1769869879014,0.09964,81379.0,81339.0,0.29235598]
[1769869879216,0.3986,81404.0,81308.0,0.061583]
[1769869879217,0.009302,81405.0,81365.0,0.29235598]
[1769869879407,0.28048706,81429.0,81350.0,0.29235598]
[1769869879408,0.012304,81393.0,81350.0,0.29235598]
[1769869879813,0.08737435,81404.0,81362.0,0.16410329]
[1769869880121,0.012307,81372.0,81339.0,0.29235598]
[1769869880321,0.09964,81376.0,81329.0,0.09964]
[1769869880617,0.012307,81370.0,81330.0,0.41527329]
[1769869880916,0.012299,81420.0,81375.0,0.29235598]
[1769869881120,0.012297,81435.0,81377.0,0.29235598]
[1769869881313,0.39864,81465.0,81382.0,0.29235598]
[1769869881314,0.26523188,81436.0,81382.0,0.29235598]
[1769869881514,0.012294,81454.0,81393.0,0.29235598]
[1769869881722,0.012291,81472.0,81409.0,0.29235598]
[1769869881918,0.05,81502.0,81382.0,0.061527]
[1769869881919,0.05,81502.0,81437.0,0.29235598]
[1769869882124,0.05,81502.0,81438.0,0.39199598]
[1769869882422,0.012287,81500.0,81439.0,0.29235598]
[1769869882620,0.05,81502.0,81456.0,0.29235598]
[1769869882817,0.09664,81524.0,81481.0,0.29235598]
[1769869883027,0.012276,81577.0,81483.0,0.29235598]
[1769869883028,0.09964,81557.0,81483.0,0.29235598]
[1769869883216,0.28048706,81556.0,81485.0,0.29235598]
[1769869883424,0.12274456,81545.0,81485.0,0.29235598]
[1769869883724,0.28048706,81556.0,81485.0,0.29235598]
[1769869883917,0.40315559,81555.0,81487.0,0.29235598]
[1769869884120,0.09964,81557.0,81486.0,0.13582364]
[1769869884121,0.28048706,81554.0,81486.0,0.13582364]
[1769869884321,0.28048706,81554.0,81450.0,0.29235598]
[1769869884322,0.28048706,81553.0,81450.0,0.29235598]
[1769869884514,0.28048706,81553.0,81449.0,0.09964]
[1769869884920,0.06800788,81554.0,81449.0,0.09964]
[1769869884921,0.28048706,81551.0,81452.0,0.29235598]
[1769869885320,0.28048706,81551.0,81457.0,0.29235598]
[1769869885621,0.23222883,81593.0,81456.0,0.012294]
[1769869885622,0.28048706,81549.0,81465.0,0.29235598]
[1769869885816,0.0996,81548.0,81476.0,0.29235598]
[1769869886011,0.28048706,81547.0,81476.0,0.29235598]
[1769869886217,0.28048706,81546.0,81476.0,0.29235598]
[1769869886427,0.28048706,81546.0,81459.0,0.29235598]
[1769869886921,0.28048706,81546.0,81412.0,0.39868513]
[1769869886922,0.28048706,81544.0,81461.0,0.12268282]
[1769869887129,0.28048706,81542.0,81424.0,0.29235598]
[1769869887326,0.28048706,81540.0,81424.0,0.29235598]
[1769869887519,0.28048706,81538.0,81426.0,0.29235598]
[1769869887719,0.28048706,81536.0,81426.0,0.29235598]
[1769869887920,0.06595413,81546.0,81430.0,0.29235598]
[1769869887921,0.28048706,81534.0,81430.0,0.29235598]
[1769869888229,0.06595413,81546.0,81430.0,0.29235598]
[1769869888230,0.28048706,81532.0,81430.0,0.29235598]
[1769869888416,0.28048706,81530.0,81430.0,0.29235598]
[1769869888721,0.28048706,81518.0,81413.0,0.29235598]
[1769869888916,0.28048706,81516.0,81412.0,0.00012513]
[1769869889112,0.34880654,81517.0,81412.0,0.00012513]
[1769869889113,0.51271589,81514.0,81412.0,0.00012513]
[1769869889326,0.28048706,81487.0,81412.0,0.00012513]
[1769869889516,0.28048706,81485.0,81412.0,0.00012513]
[1769869889716,0.0996,81488.0,81412.0,0.00012513]
[1769869889717,0.28048706,81483.0,81412.0,0.00012513]
[1769869889921,0.28048706,81481.0,81412.0,0.00012513]
[1769869890227,0.28048706,81479.0,81412.0,0.00012513]
[1769869890425,0.28048706,81477.0,81412.0,0.00012513]
[1769869890813,0.11381682,81476.0,81412.0,0.00012513]
[1769869891021,0.28048706,81474.0,81412.0,0.00012513]
[1769869891226,0.28048706,81472.0,81412.0,0.00012513]
[1769869891430,0.46264,81478.0,81379.0,0.29235598]
[1769869891431,0.28048706,81470.0,81379.0,0.29235598]
[1769869891629,0.28048706,81470.0,81320.0,0.39159572]
[1769869891630,0.28048706,81468.0,81368.0,0.0996]
[1769869891819,0.28048706,81466.0,81370.0,0.29235598]
[1769869892020,0.28048706,81464.0,81381.0,0.29235598]
[1769869892221,0.28048706,81462.0,81381.0,0.29235598]
[1769869892422,0.28048706,81440.0,81381.0,0.29235598]
[1769869892623,0.28048706,81438.0,81381.0,0.29235598]
[1769869892820,0.28048706,81438.0,81383.0,0.29235598]
[1769869892821,0.012299,81421.0,81383.0,0.29235598]
[1769869893123,0.012298,81428.0,81396.0,0.16410329]
[1769869893319,0.012298,81428.0,81389.0,0.29235598]
[1769869893522,0.00181061,81437.0,81400.0,0.16410329]
[1769869893523,0.0123,81417.0,81400.0,0.16410329]
[1769869893721,0.03621461,81438.0,81379.0,0.29235598]
[1769869893921,0.00090502,81427.0,81381.0,0.29235598]
[1769869894228,0.012299,81420.0,81381.0,0.29235598]
[1769869894426,0.012299,81420.0,81399.0,0.16410329]
[1769869894627,0.01177033,81426.0,81381.0,0.29235598]
[1769869894628,0.12283729,81419.0,81393.0,0.16410329]
[1769869894824,0.01991599,81419.0,81406.0,0.16410329]
[1769869895030,0.84188706,81439.0,81383.0,0.29235598]
[1769869895334,0.41600932,81438.0,81385.0,0.16410329]
[1769869895522,0.41600932,81438.0,81383.0,0.29235598]
[1769869895722,0.41600932,81438.0,81389.0,0.16410329]
[1769869896123,0.41600932,81438.0,81399.0,0.16410329]
[1769869896318,0.13552226,81438.0,81404.0,0.16410329]
[1769869896518,0.13552226,81438.0,81355.0,0.0996]
[1769869896519,0.28048706,81437.0,81367.0,0.29235598]
[1769869896727,0.28048706,81437.0,81369.0,0.14184275]
[1769869896928,0.2802808,81435.0,81366.0,0.12281843]
[1769869897240,0.2802808,81435.0,81318.0,0.30000093]
[1769869897241,0.2802808,81435.0,81335.0,0.2880513]
[1769869897242,0.2802808,81433.0,81335.0,0.2880513]
[1769869897536,0.11435474,81434.0,81350.0,9.5e-07]
[1769869897537,0.2802808,81431.0,81350.0,9.5e-07]
[1769869897724,0.012308,81365.0,81350.0,9.5e-07]
[1769869897929,0.012308,81365.0,81328.0,0.0996]
[1769869897930,0.0996,81368.0,81328.0,0.0996]
[1769869898327,0.2107391,81383.0,81330.0,0.2880513]
[1769869898528,0.39852,81394.0,81330.0,0.2880513]
[1769869898738,0.39852,81394.0,81300.0,0.061589]
[1769869898739,0.012309,81355.0,81303.0,0.2880513]
[1769869899038,0.2802808,81371.0,81310.0,0.2880513]
[1769869899039,0.09964,81358.0,81310.0,0.2880513]
[1769869899231,0.09964,81358.0,81311.0,0.012316]
[1769869899531,1.00641214,81393.0,81302.0,0.05]
[1769869899532,0.1229158,81370.0,81316.0,0.2880513]
[1769869899738,0.1229158,81370.0,81312.0,0.1229158]
[1769869899739,0.09964,81383.0,81334.0,0.2880513]
[1769869900130,0.12294905,81382.0,81335.0,0.12294905]
[1769869900437,0.28057702,81375.0,81329.0,0.09964]
[1769869900933,0.28057702,81375.0,81296.0,0.012318]
[1769869900934,0.012311,81341.0,81302.0,0.32215203]
[1769869901128,0.012312,81336.0,81302.0,0.32215203]
[1769869901525,0.012314,81322.0,81302.0,0.05]
[1769869901931,0.012315,81317.0,81302.0,0.05]
[1769869902239,0.01231,81349.0,81304.0,0.27215203]
[1769869902427,0.28057702,81349.0,81302.0,0.05]
[1769869902730,0.25704598,81342.0,81302.0,0.05]
[1769869902933,0.012312,81338.0,81302.0,0.05]
[1769869903235,0.13407349,81342.0,81302.0,0.05]
[1769869903236,0.13527215,81341.0,81302.0,0.32215203]
[1769869903424,0.012311,81341.0,81302.0,0.32215203]
[1769869903628,0.061541,81364.0,81304.0,0.27215203]
[1769869903823,0.061541,81364.0,81302.0,0.05]
[1769869903824,0.12296871,81340.0,81302.0,0.05]
[1769869904033,0.28057702,81339.0,81302.0,0.05]
[1769869904234,0.012312,81336.0,81302.0,0.05]
[1769869904435,0.28057702,81339.0,81302.0,0.05]
[1769869904637,0.012314,81324.0,81302.0,0.05]
[1769869904843,0.28057702,81334.0,81272.0,0.27215203]
[1769869905140,0.01361076,81323.0,81272.0,0.27215203]
[1769869905435,0.43516927,81334.0,81277.0,1.9e-07]
[1769869905436,0.012318,81295.0,81277.0,1.9e-07]
[1769869905637,0.012317,81300.0,81277.0,1.9e-07]
[1769869905834,0.09968,81301.0,81242.0,0.09968]
[1769869906028,0.12300123,81294.0,81242.0,0.09968]
[1769869906230,0.012322,81272.0,81225.0,0.38836529]
[1769869906442,0.09968,81301.0,81248.0,0.00191221]
[1769869906443,0.012321,81278.0,81248.0,0.00191221]
[1769869906737,0.012323,81267.0,81226.0,0.12300123]
[1769869906946,0.00012977,81277.0,81210.0,0.27215203]
[1769869906947,0.012324,81258.0,81210.0,0.27215203]
[1769869907242,0.09968,81266.0,81211.0,0.12307919]
[1769869907243,0.012324,81256.0,81211.0,0.12307919]
[1769869907443,0.14597199,81257.0,81211.0,0.12307919]
[1769869907640,0.14597199,81257.0,81201.0,0.00010202]
[1769869907641,0.14126068,81255.0,81201.0,0.27225405]
[1769869907834,0.0001432,81256.0,81207.0,0.27215203]
[1769869908032,0.0124672,81256.0,81207.0,0.27215203]
[1769869908234,0.12310192,81255.0,81207.0,0.27215203]
[1769869908439,0.27668901,81255.0,81209.0,0.27215203]
[1769869908646,9.066e-05,81254.0,81209.0,0.27215203]
[1769869909034,9.066e-05,81254.0,81211.0,0.27215203]
[1769869909435,0.12310571,81253.0,81211.0,0.27215203]
[1769869909638,0.12310571,81253.0,81209.0,0.09972]
[1769869909639,0.11920195,81253.0,81217.0,0.27215203]
[1769869909844,9.066e-05,81254.0,81217.0,0.27215203]
[1769869910039,0.09968,81266.0,81227.0,0.27215203]
[1769869910240,0.09968,81266.0,81218.0,0.12310343]
[1769869910546,0.12310343,81253.0,81201.0,0.27225405]
[1769869910737,0.012324,81259.0,81214.0,0.27215203]
[1769869910940,0.28057702,81258.0,81213.0,0.12308904]
[1769869911138,0.28057702,81258.0,81201.0,0.00010202]
[1769869911139,0.140675,81252.0,81203.0,0.28448403]
[1769869911443,0.012324,81257.0,81201.0,0.00010202]
[1769869911444,0.01240217,81251.0,81215.0,0.12308904]
[1769869911641,0.28057702,81246.0,81201.0,0.00010202]
[1769869911847,0.012328,81228.0,81201.0,0.00010202]
[1769869912039,7.717e-05,81227.0,81201.0,0.00010202]
[1769869912338,0.012329,81225.0,81201.0,0.00010202]
[1769869912648,0.12844969,81224.0,81201.0,0.00010202]
[1769869912844,0.12844969,81224.0,81186.0,0.27215203]
[1769869913034,0.09676,81233.0,81199.0,0.27219203]
[1769869913245,0.012322,81271.0,81218.0,0.27215203]
[1769869913445,0.012323,81265.0,81218.0,0.27215203]
[1769869913752,0.012323,81262.0,81218.0,0.27215203]
[1769869913939,0.012327,81238.0,81219.0,0.12308525]
[1769869914138,0.1258125,81261.0,81203.0,0.27215203]
[1769869914463,0.1258125,81261.0,81199.0,4e-05]
[1769869914464,0.061633,81243.0,81205.0,0.1371625]
[1769869914742,0.012331,81209.0,81199.0,4e-05]
[1769869914944,0.061643,81230.0,81192.0,5e-08]
[1769869915257,0.012324,81255.0,81201.0,0.27215203]
[1769869915547,0.09976,81269.0,81204.0,0.012332]
[1769869915548,0.012323,81261.0,81204.0,0.012332]
[1769869915737,0.012325,81251.0,81205.0,0.27215203]
[1769869916142,0.012324,81259.0,81205.0,0.27215203]
[1769869916350,0.012323,81261.0,81213.0,0.27215203]
[1769869916540,0.012325,81251.0,81215.0,0.27215203]
[1769869917046,0.012324,81255.0,81217.0,0.27215203]
[1769869917552,0.012324,81255.0,81192.0,5e-08]
[1769869917553,0.28057702,81244.0,81192.0,5e-08]
[1769869918045,0.1776819,81243.0,81194.0,0.27215203]
[1769869918253,0.012329,81226.0,81194.0,0.27215203]
[1769869918439,0.012329,81226.0,81192.0,5e-08]
[1769869918440,0.012329,81223.0,81192.0,5e-08]
[1769869918646,0.01233,81218.0,81192.0,5e-08]
[1769869918838,0.11516949,81225.0,81194.0,0.27215203]
[1769869919039,0.012327,81236.0,81192.0,5e-08]
[1769869919255,0.0998,81243.0,81196.0,0.27215203]
[1769869919746,0.0998,81243.0,81192.0,5e-08]
[1769869919747,0.012333,81201.0,81192.0,5e-08]
[1769869919955,0.0998,81219.0,81192.0,5e-08]